Workbook

Sheet Guidance
A1: KNOW YOUR DONORS: THE MONEY FOR GOOD UK DONOR SEGMENTATION TOOL
A3: What is the donor allocation tool?
A4: Working with our research partners, Ipsos MORI, we have developed Know your donor: the Money for Good UK donor segmentation tool, so that you can easily identify your supporters’ donor type.
A5: The tool is simple to use: donors answer 13 questions, and the tool allocates them to one of the seven segments based on their responses. We have also created shorter single segment tools which calculate whether or not a donor falls into a particular segment.
A6: This tool makes insights from Money for Good UK open and accessible to the whole sector. It offers a straightforward way to apply and test the segmentation, so that individual charities can investigate how it might work for them in practice.
A7: The level of confidence with which these tools allocate donors to segments varies by donor type, and depending on whether you use the main tool or the single segment tools. On the fourth worksheet of the main tool, you can see confidence levels, which Ipsos MORI considers very successful.
A9: How could you use the tool?
A10: There are a number of ways! You might want to use it when talking to individual donors to find out more about their preferences—either in person or on the phone. For this kind of activity, it is probably best to use the ‘Know your donors’ worksheet: this simply involves clicking your answers on the worksheet and pressing the calculate button at the end.
A11: If you want to gather information from a large number of people—by sending the questions in a supporter survey, for example—the Multiple Respondents worksheet might be easier. All you do is collect the data in the right format, and then copy it into this sheet to calculate everyone’s donor type at once. For further instructions, please see the Multiple Respondents Notes.
A13: Help, the tool doesn’t seem to be working!
A14: This is an excel-based tool. If you can’t click the ‘calculate’ button, you may need to ‘enable macros’ by clicking on ‘enable content’ in the yellow security warning at the top of the screen.
A15: On the ‘Know your Donor’ worksheet, you need to click the ‘calculate’ button before getting your result. Remember to reset the form by clicking ‘clear’ before you start using the tool with a new person.
A17: I want to know more about how it works
A18: The calculations for the donor segmentation tool can be seen in the hidden columns to the left and right of the questions (columns A to E, and K to AG on the Know your Donor worksheet). These have been hidden to make the tool easier to use but can be unhidden by clicking on the + sign at the top of the worksheet.
A19: The donor allocation tool works using a shortened version of the original Money for Good UK questionnaire. The original questionnaire can be found in Appendix A of the Money for Good UK research. To find out more about how the original segmentation was conducted, see Ipsos MORI’s technical report.
A21: This is a summary of the full guidance note which can be found on the webpage at www.thinkNPC.org/know-your-donors/.
A23: Know your donors: The Money for Good UK donor segmentation tool is kindly supported by the Gates Foundation and Unity Trust Bank.

Sheet Know your donors tool
F1: KNOW YOUR DONORS: THE MONEY FOR GOOD UK DONOR SEGMENTATION TOOL
F3: You will now see some reasons that other people have given for donating to charity. We will show them to you in pairs. For each pair of reasons please give the one which would be most important to you of the pair (even if neither are very important to you at all)
A5: (Code: A=1,B=0) | F5: Q1. Pair 1
A6: =IF(B6=1,1,0) -> 0 | B6: 0
A7: =IF(B7=1,1,0) -> 0 | B7: 0
A8: =IF(B8=1,1,0) -> 0 | B8: 0 | F8: Q2. Pair 2
A9: =IF(B9=1,1,0) -> 0 | B9: 0
A10: =IF(B10=1,1,0) -> 0 | B10: 0
F11: Q3. Pair 3
F14: Q4. Pair 4
F17: Q5. Pair 5
J18: INTERNAL USE
K20: Segments | Z20: Segment
A21: (Code:1,2,3,4,5, where 5="I pay extremely close attention to this" | F21: How much attention, if any, do you pay to each of the following when giving to charity | K21: Loyal supporter | L21: Ad-hoc giver | M21: Good citizen | N21: Faith-based donor | O21: Engaged champion | P21: Benefactor | Q21: Thoughtful philanthropist | Z21: Loyal supporter | AA21: Ad-hoc giver | AB21: Good citizen | AC21: Faith-based donor | AD21: Engaged champion | AE21: Benefactor | AF21: Thoughtful philanthropist
A22: =B22 -> 0 | B22: 0 | F22: Q6. "Ability to get involved with the organisation" | K22: Fisher's scores | Z22: Probability of segment membership
A23: =B23 -> 0 | B23: 0 | F23: Q7. "How often the organisation asks me for money" | J23: Qs | K23: =SUMPRODUCT($A6:$A10,K24:K28)+SUMPRODUCT($A22:$A23,K29:K30)+SUMPRODUCT($A27:$A29,K31:K33)+SUMPRODUCT($A32:$A33,K34:K35)+SUMPRODUCT($A36,K36)+K37 -> -25.226 | L23: =SUMPRODUCT($A6:$A10,L24:L28)+SUMPRODUCT($A22:$A23,L29:L30)+SUMPRODUCT($A27:$A29,L31:L33)+SUMPRODUCT($A32:$A33,L34:L35)+SUMPRODUCT($A36,L36)+L37 -> -31.571 | M23: -28.119 | N23: -44.447 | O23: -37.618 | P23: -38.927 | Q23: -38.827 | R23: =EXP(K23) -> 1.107866422e-11 | S23: =EXP(L23) -> 1.944862542e-14 | T23: 6.138658353e-13 | U23: 4.976375724e-20 | V23: 4.599495304e-17 | W23: 1.242277739e-17 | X23: 1.372929229e-17 | Y23: =SUM(R23:X23) -> 1.171205087e-11 | Z23: =R23/$Y$23 -> 0.94592009 | AA23: =S23/$Y$23 -> 0.001660565312 | AB23: 0.0524131804 | AC23: 4.248936227e-09 | AD23: 3.927147648e-06 | AE23: 1.060683353e-06 | AF23: 1.172236395e-06
J24: Q1 pair5_12 | K24: 9.299 | L24: 10.616 | M24: 1.785 | N24: 9.613 | O24: 10.349 | P24: 7.944 | Q24: 10.18
J25: Q2 pair1_10 | K25: 0.173 | L25: 4.551 | M25: 2.798 | N25: 0.957 | O25: -0.119 | P25: 2.775 | Q25: 1.082
A26: (Code=1,2,3,4,5, where 5="Very important") | F26: For each statement please select how important it is to your sense of who you are | J26: Q3 pair7_11 | K26: 0.064 | L26: 1.36 | M26: 1.237 | N26: 1.623 | O26: 1.528 | P26: 0.665 | Q26: 0.772
A27: =B27 -> 0 | B27: 0 | F27: Q8. Your family | J27: Q4 pair6_8 | K27: -0.92 | L27: -0.838 | M27: -0.098 | N27: 28.988 | O27: -1.397 | P27: 3.849 | Q27: 0.453
A28: =B28 -> 0 | B28: 0 | F28: Q9. Being part of you local community | J28: Q5 pair4_11 | K28: 0.807 | L28: 0.94 | M28: 1.183 | N28: 0.116 | O28: 0.227 | P28: 14.658 | Q28: 0.526
A29: =B29 -> 0 | B29: 0 | F29: Q10. Your level of income | J29: Q6 r12_3 | K29: 1.701 | L29: 1.514 | M29: 1.613 | N29: 2.036 | O29: 2.531 | P29: 1.961 | Q29: 2.007
J30: Q7 r12_9 | K30: 2.243 | L30: 2.14 | M30: 2.201 | N30: 2.061 | O30: 2.706 | P30: 2.365 | Q30: 2.391
A31: (Code: NO=0, YES=1) | J31: Q8 r1_4 | K31: 2.712 | L31: 2.936 | M31: 2.823 | N31: 3.088 | O31: 3.152 | P31: 2.692 | Q31: 2.899
A32: =IF(B32=2,1,0) -> 0 | B32: 0 | F32: Q11. Have you used an ongoing direct debit or standing order to make a donation to charity in the past year | J32: Q9 r1_5 | K32: 1.445 | L32: 1.562 | M32: 1.798 | N32: 1.702 | O32: 2.086 | P32: 1.876 | Q32: 1.672
A33: =IF(B33=2,1,0) -> 0 | B33: 0 | F33: Q12. Have you used Gift of Assets to make a donation to charity in the past year | J33: Q10 r1_6 | K33: 1.669 | L33: 1.976 | M33: 2.013 | N33: 1.766 | O33: 2.13 | P33: 2.118 | Q33: 1.833
J34: Q11 d4_3 | K34: 1.871 | L34: 0.617 | M34: 0.855 | N34: 1.278 | O34: 0.609 | P34: 0.77 | Q34: 0.981
A35: (Code: 1,2,3,4,5, where 5 = "Strongly agree") | J35: Q12 d4_13 | K35: 0.439 | L35: 0.198 | M35: 1.57 | N35: -0.2 | O35: -0.054 | P35: 0.906 | Q35: 18.94
A36: =B36 -> 0 | B36: 0 | F36: Q13. To what extent do you agree or disagree with the following statement: " I like to be seen as a role model " | J36: Q13 r2_2 | K36: 2.959 | L36: 3.554 | M36: 3.749 | N36: 3.012 | O36: 3.681 | P36: 3.605 | Q36: 3.637
J37: (Constant) | K37: -25.226 | L37: -31.571 | M37: -28.119 | N37: -44.447 | O37: -37.618 | P37: -38.927 | Q37: -38.827
B39: =IF(MAX(K23:Q23)=K23,"Loyal supporter",IF(MAX(K23:Q23)=L23,"Ad-hoc giver",IF(MAX(K23:Q23)=M23,"Good citizen",IF(MAX(K23:Q23)=N23,"Faith-based donor",IF(MAX(K23:Q23)=O23,"Engaged champion",IF(MAX(K23:Q23)=P23,"Benefactor",IF(MAX(K23:Q23)=Q23,"Thoughtful philanthropist",""))))))) -> Loyal supporter

Sheet Multiple respondents
C1: Most frequent activities | E1: Pairwise comparisons | J1: Segmentation questions
A2: Question Statements | E2: Q1. The charity deals with a cause that has had a direct impact on me or someone close to me vs. Someone in my position ought to give to charity | F2: A friend, colleague, or family member asks me to give / sponsor them vs. I can see the difference my money makes | G2: The organisation works in my local community vs. This organisation focuses on a neglected or under-funded issue | H2: My giving is driven by my religious beliefs vs. The organisation has more impact than others on the cause that I care about | I2: Tax incentives encourage me to give vs. This organisation focues on a neglected or under-funded issue | J2: How much attention do you pay to "Ability to get involved with the organisation" when giving to charity | K2: How much attention do you pay to "How often the organisation asks me for money" when giving to charity | L2: How important is your family to your sense of who you are? | M2: How important is being part of your local community to your sense of who you are? | N2: How important is your level of income to your sense of who you are? | O2: Have you used an going DD or standing order to make a donation to charity in the past year | P2: Have you used Gift of Assets to make a donation to charity in the past year | Q2: To what extent do you agree or disagree with the following statement: " I like to be seen as a role model "
A3: Code | B3: Respondent unique reference | E3: Q1. Pair 1 | F3: Q2. Pair 2 | G3: Q3. pair 3 | H3: Q4. Pair 4 | I3: Q5. Pair 5 | J3: Q6 | K3: Q7 | L3: Q8 | M3: Q9 | N3: Q10 | O3: Q11 | P3: Q12 | Q3: Q13 | R3: pair5_12 | S3: pair1_10 | T3: pair7_11 | U3: pair6_8 | V3: pair4_11 | W3: r12_3 | X3: r12_9 | Y3: r1_4 | Z3: r1_5 | AA3: r1_6 | AB3: d4_3 | AC3: d4_13 | AD3: r2_2 | AF3: Loyal supporter | AG3: Ad-hoc giver | AH3: Good citizen | AI3: Faith-based donor | AJ3: Engaged champion | AK3: Benefactor | AL3: Thoughtful philanthropist | AM3: Segment | AP3: Segment Allocation
A4: 1 | B4: EXAMPLE | C4: 1 | D4: 0 | E4: 1 | F4: 1 | G4: 0 | H4: 0 | I4: 0 | J4: 2 | K4: 2 | L4: 5 | M4: 3 | N4: 4 | O4: 0 | P4: 0 | Q4: 3 | R4: =E4 -> 1 | S4: =F4 -> 1 | T4: =G4 -> 0 | U4: =H4 -> 0 | V4: =I4 -> 0 | W4: =J4 -> 2 | X4: =K4 -> 2 | Y4: =L4 -> 5 | Z4: =M4 -> 3 | AA4: =N4 -> 4 | AB4: =O4 -> 0 | AC4: =P4 -> 0 | AD4: =Q4 -> 3 | AF4: =SUMPRODUCT($AX$6:$BJ$6,R4:AD4)+ $BK$6 -> 25.582 | AG4: =SUMPRODUCT($AX$7:$BJ$7,R4:AD4)+ $BK$7 -> 28.836 | AH4: =SUMPRODUCT($AX$8:$BJ$8,R4:AD4)+ $BK$8 -> 22.9 | AI4: =SUMPRODUCT($AX$9:$BJ$9,R4:AD4)+ $BK$9 -> 10.963 | AJ4: =SUMPRODUCT($AX$10:$BJ$10,R4:AD4)+ $BK$10 -> 24.667 | AK4: =SUMPRODUCT($AX$11:$BJ$11,R4:AD4)+ $BK$11 -> 18.819 | AL4: =SUMPRODUCT($AX$12:$BJ$12,R4:AD4)+ $BK$12 -> 18.985 | AM4: =IF(MAX(AF4:AL4)=AF4,"Loyal supporter",IF(MAX(AF4:AL4)=AG4,"Ad-hoc giver",IF(MAX(AF4:AL4)=AH4,"Good citizen",IF(MAX(AF4:AL4)=AI4,"Faith-based donor",IF(MAX(AF4:AL4)=AJ4,"Engaged champion",IF(MAX(AF4:AL4)=AK4,"Benefactor",IF(MAX(AF4:AL4)=AL4,"Thoughtful philanthropist",""))))))) -> Ad-hoc giver | AP4: =AM4 -> Ad-hoc giver
A5: =A4+1 -> 2 | C5: 1 | D5: 1 | R5: 0 | S5: 0 | T5: 0 | U5: 0 | V5: 0 | W5: 0 | X5: 0 | Y5: 0 | Z5: 0 | AA5: 0 | AB5: 0 | AC5: 0 | AD5: 0 | AF5: =SUMPRODUCT($AX$6:$BJ$6,R5:AD5)+ $BK$6 -> -25.226 | AG5: =SUMPRODUCT($AX$7:$BJ$7,R5:AD5)+ $BK$7 -> -31.571 | AH5: =SUMPRODUCT($AX$8:$BJ$8,R5:AD5)+ $BK$8 -> -28.119 | AI5: -44.447 | AJ5: =SUMPRODUCT($AX$10:$BJ$10,R5:AD5)+ $BK$10 -> -37.618 | AK5: -38.927 | AL5: -38.827 | AM5: =IF(MAX(AF5:AL5)=AF5,"Loyal supporter",IF(MAX(AF5:AL5)=AG5,"Ad-hoc giver",IF(MAX(AF5:AL5)=AH5,"Good citizen",IF(MAX(AF5:AL5)=AI5,"Faith-based donor",IF(MAX(AF5:AL5)=AJ5,"Engaged champion",IF(MAX(AF5:AL5)=AK5,"Benefactor",IF(MAX(AF5:AL5)=AL5,"Thoughtful philanthropist",""))))))) -> Loyal supporter | AP5: =AM5 -> Loyal supporter | AQ5: Population summary | AR5: Freq | AS5: % | AX5: pair5_12 | AY5: pair1_10 | AZ5: pair7_11 | BA5: pair6_8 | BB5: pair4_11 | BC5: r12_3 | BD5: r12_9 | BE5: r1_4 | BF5: r1_5 | BG5: r1_6 | BH5: d4_3 | BI5: d4_13 | BJ5: r2_2 | BK5: (Constant)
A6: =A5+1 -> 3 | C6: 1 | D6: 1 | R6: 0 | S6: 0 | T6: 0 | U6: 0 | V6: 0 | W6: 0 | X6: 0 | Y6: 0 | Z6: 0 | AA6: 0 | AB6: 0 | AC6: 0 | AD6: 0 | AF6: -25.226 | AG6: -31.571 | AH6: -28.119 | AI6: -44.447 | AJ6: -37.618 | AK6: -38.927 | AL6: -38.827 | AM6: Loyal supporter | AP6: Loyal supporter | AQ6: Loyal supporter | AR6: =COUNTIFS(AP:AP,AQ6) -> 99 | AS6: =AR6/SUM($AR$6:$AR$12) -> 0.99 | AW6: =SUMPRODUCT($R$4:$AD$4,AX6:BJ6)+BK6 -> 25.582 | AX6: 9.299 | AY6: 0.173 | AZ6: 0.064 | BA6: -0.92 | BB6: 0.807 | BC6: 1.701 | BD6: 2.243 | BE6: 2.712 | BF6: 1.445 | BG6: 1.669 | BH6: 1.871 | BI6: 0.439 | BJ6: 2.959 | BK6: -25.226
A7: 4 | C7: 1 | D7: 1 | R7: 0 | S7: 0 | T7: 0 | U7: 0 | V7: 0 | W7: 0 | X7: 0 | Y7: 0 | Z7: 0 | AA7: 0 | AB7: 0 | AC7: 0 | AD7: 0 | AF7: -25.226 | AG7: -31.571 | AH7: -28.119 | AI7: -44.447 | AJ7: -37.618 | AK7: -38.927 | AL7: -38.827 | AM7: Loyal supporter | AP7: Loyal supporter | AQ7: Ad-hoc giver | AR7: =COUNTIFS(AP:AP,AQ7) -> 1 | AS7: =AR7/SUM($AR$6:$AR$12) -> 0.01 | AW7: 28.836 | AX7: 10.616 | AY7: 4.551 | AZ7: 1.36 | BA7: -0.838 | BB7: 0.94 | BC7: 1.514 | BD7: 2.14 | BE7: 2.936 | BF7: 1.562 | BG7: 1.976 | BH7: 0.617 | BI7: 0.198 | BJ7: 3.554 | BK7: -31.571
A8: 5 | C8: 1 | D8: 1 | R8: 0 | S8: 0 | T8: 0 | U8: 0 | V8: 0 | W8: 0 | X8: 0 | Y8: 0 | Z8: 0 | AA8: 0 | AB8: 0 | AC8: 0 | AD8: 0 | AF8: -25.226 | AG8: -31.571 | AH8: -28.119 | AI8: -44.447 | AJ8: -37.618 | AK8: -38.927 | AL8: -38.827 | AM8: Loyal supporter | AP8: Loyal supporter | AQ8: Good citizen | AR8: 0 | AS8: 0 | AW8: 22.9 | AX8: 1.785 | AY8: 2.798 | AZ8: 1.237 | BA8: -0.098 | BB8: 1.183 | BC8: 1.613 | BD8: 2.201 | BE8: 2.823 | BF8: 1.798 | BG8: 2.013 | BH8: 0.855 | BI8: 1.57 | BJ8: 3.749 | BK8: -28.119
A9: 6 | C9: 0 | D9: 0 | R9: 0 | S9: 0 | T9: 0 | U9: 0 | V9: 0 | W9: 0 | X9: 0 | Y9: 0 | Z9: 0 | AA9: 0 | AB9: 0 | AC9: 0 | AD9: 0 | AF9: -25.226 | AG9: -31.571 | AH9: -28.119 | AI9: -44.447 | AJ9: -37.618 | AK9: -38.927 | AL9: -38.827 | AM9: Loyal supporter | AP9: Loyal supporter | AQ9: Faith-based donor | AR9: 0 | AS9: 0 | AW9: 10.963 | AX9: 9.613 | AY9: 0.957 | AZ9: 1.623 | BA9: 28.988 | BB9: 0.116 | BC9: 2.036 | BD9: 2.061 | BE9: 3.088 | BF9: 1.702 | BG9: 1.766 | BH9: 1.278 | BI9: -0.2 | BJ9: 3.012 | BK9: -44.447
A10: 7 | C10: 1 | D10: 1 | R10: 0 | S10: 0 | T10: 0 | U10: 0 | V10: 0 | W10: 0 | X10: 0 | Y10: 0 | Z10: 0 | AA10: 0 | AB10: 0 | AC10: 0 | AD10: 0 | AF10: -25.226 | AG10: -31.571 | AH10: -28.119 | AI10: -44.447 | AJ10: -37.618 | AK10: -38.927 | AL10: -38.827 | AM10: Loyal supporter | AP10: Loyal supporter | AQ10: Engaged champion | AR10: 0 | AS10: 0 | AW10: 24.667 | AX10: 10.349 | AY10: -0.119 | AZ10: 1.528 | BA10: -1.397 | BB10: 0.227 | BC10: 2.531 | BD10: 2.706 | BE10: 3.152 | BF10: 2.086 | BG10: 2.13 | BH10: 0.609 | BI10: -0.054 | BJ10: 3.681 | BK10: -37.618
A11: 8 | C11: 1 | D11: 1 | R11: 0 | S11: 0 | T11: 0 | U11: 0 | V11: 0 | W11: 0 | X11: 0 | Y11: 0 | Z11: 0 | AA11: 0 | AB11: 0 | AC11: 0 | AD11: 0 | AF11: -25.226 | AG11: -31.571 | AH11: -28.119 | AI11: -44.447 | AJ11: -37.618 | AK11: -38.927 | AL11: -38.827 | AM11: Loyal supporter | AP11: Loyal supporter | AQ11: Benefactor | AR11: 0 | AS11: 0 | AW11: 18.819 | AX11: 7.944 | AY11: 2.775 | AZ11: 0.665 | BA11: 3.849 | BB11: 14.658 | BC11: 1.961 | BD11: 2.365 | BE11: 2.692 | BF11: 1.876 | BG11: 2.118 | BH11: 0.77 | BI11: 0.906 | BJ11: 3.605 | BK11: -38.927
A12: 9 | C12: 1 | D12: 1 | R12: 0 | S12: 0 | T12: 0 | U12: 0 | V12: 0 | W12: 0 | X12: 0 | Y12: 0 | Z12: 0 | AA12: 0 | AB12: 0 | AC12: 0 | AD12: 0 | AF12: -25.226 | AG12: -31.571 | AH12: -28.119 | AI12: -44.447 | AJ12: -37.618 | AK12: -38.927 | AL12: -38.827 | AM12: Loyal supporter | AP12: Loyal supporter | AQ12: Thoughtful philanthropist | AR12: 0 | AS12: 0 | AW12: 18.985 | AX12: 10.18 | AY12: 1.082 | AZ12: 0.772 | BA12: 0.453 | BB12: 0.526 | BC12: 2.007 | BD12: 2.391 | BE12: 2.899 | BF12: 1.672 | BG12: 1.833 | BH12: 0.981 | BI12: 18.94 | BJ12: 3.637 | BK12: -38.827
A13: 10 | C13: 0 | D13: 0 | R13: 0 | S13: 0 | T13: 0 | U13: 0 | V13: 0 | W13: 0 | X13: 0 | Y13: 0 | Z13: 0 | AA13: 0 | AB13: 0 | AC13: 0 | AD13: 0 | AF13: -25.226 | AG13: -31.571 | AH13: -28.119 | AI13: -44.447 | AJ13: -37.618 | AK13: -38.927 | AL13: -38.827 | AM13: Loyal supporter | AP13: Loyal supporter
A14: 11 | C14: 1 | D14: 0 | R14: 0 | S14: 0 | T14: 0 | U14: 0 | V14: 0 | W14: 0 | X14: 0 | Y14: 0 | Z14: 0 | AA14: 0 | AB14: 0 | AC14: 0 | AD14: 0 | AF14: -25.226 | AG14: -31.571 | AH14: -28.119 | AI14: -44.447 | AJ14: -37.618 | AK14: -38.927 | AL14: -38.827 | AM14: Loyal supporter | AP14: Loyal supporter
A15: 12 | C15: 1 | D15: 1 | R15: 0 | S15: 0 | T15: 0 | U15: 0 | V15: 0 | W15: 0 | X15: 0 | Y15: 0 | Z15: 0 | AA15: 0 | AB15: 0 | AC15: 0 | AD15: 0 | AF15: -25.226 | AG15: -31.571 | AH15: -28.119 | AI15: -44.447 | AJ15: -37.618 | AK15: -38.927 | AL15: -38.827 | AM15: Loyal supporter | AP15: Loyal supporter
A16: 13 | C16: 1 | D16: 1 | R16: 0 | S16: 0 | T16: 0 | U16: 0 | V16: 0 | W16: 0 | X16: 0 | Y16: 0 | Z16: 0 | AA16: 0 | AB16: 0 | AC16: 0 | AD16: 0 | AF16: -25.226 | AG16: -31.571 | AH16: -28.119 | AI16: -44.447 | AJ16: -37.618 | AK16: -38.927 | AL16: -38.827 | AM16: Loyal supporter | AP16: Loyal supporter
A17: 14 | C17: 1 | D17: 0 | R17: 0 | S17: 0 | T17: 0 | U17: 0 | V17: 0 | W17: 0 | X17: 0 | Y17: 0 | Z17: 0 | AA17: 0 | AB17: 0 | AC17: 0 | AD17: 0 | AF17: -25.226 | AG17: -31.571 | AH17: -28.119 | AI17: -44.447 | AJ17: -37.618 | AK17: -38.927 | AL17: -38.827 | AM17: Loyal supporter | AP17: Loyal supporter
A18: 15 | C18: 0 | D18: 0 | R18: 0 | S18: 0 | T18: 0 | U18: 0 | V18: 0 | W18: 0 | X18: 0 | Y18: 0 | Z18: 0 | AA18: 0 | AB18: 0 | AC18: 0 | AD18: 0 | AF18: -25.226 | AG18: -31.571 | AH18: -28.119 | AI18: -44.447 | AJ18: -37.618 | AK18: -38.927 | AL18: -38.827 | AM18: Loyal supporter | AP18: Loyal supporter
A19: 16 | C19: 1 | D19: 0 | R19: 0 | S19: 0 | T19: 0 | U19: 0 | V19: 0 | W19: 0 | X19: 0 | Y19: 0 | Z19: 0 | AA19: 0 | AB19: 0 | AC19: 0 | AD19: 0 | AF19: -25.226 | AG19: -31.571 | AH19: -28.119 | AI19: -44.447 | AJ19: -37.618 | AK19: -38.927 | AL19: -38.827 | AM19: Loyal supporter | AP19: Loyal supporter
A20: 17 | C20: 1 | D20: 0 | R20: 0 | S20: 0 | T20: 0 | U20: 0 | V20: 0 | W20: 0 | X20: 0 | Y20: 0 | Z20: 0 | AA20: 0 | AB20: 0 | AC20: 0 | AD20: 0 | AF20: -25.226 | AG20: -31.571 | AH20: -28.119 | AI20: -44.447 | AJ20: -37.618 | AK20: -38.927 | AL20: -38.827 | AM20: Loyal supporter | AP20: Loyal supporter
A21: 18 | C21: 1 | D21: 1 | R21: 0 | S21: 0 | T21: 0 | U21: 0 | V21: 0 | W21: 0 | X21: 0 | Y21: 0 | Z21: 0 | AA21: 0 | AB21: 0 | AC21: 0 | AD21: 0 | AF21: -25.226 | AG21: -31.571 | AH21: -28.119 | AI21: -44.447 | AJ21: -37.618 | AK21: -38.927 | AL21: -38.827 | AM21: Loyal supporter | AP21: Loyal supporter
A22: 19 | C22: 0 | D22: 0 | R22: 0 | S22: 0 | T22: 0 | U22: 0 | V22: 0 | W22: 0 | X22: 0 | Y22: 0 | Z22: 0 | AA22: 0 | AB22: 0 | AC22: 0 | AD22: 0 | AF22: -25.226 | AG22: -31.571 | AH22: -28.119 | AI22: -44.447 | AJ22: -37.618 | AK22: -38.927 | AL22: -38.827 | AM22: Loyal supporter | AP22: Loyal supporter
A23: 20 | C23: 0 | D23: 1 | R23: 0 | S23: 0 | T23: 0 | U23: 0 | V23: 0 | W23: 0 | X23: 0 | Y23: 0 | Z23: 0 | AA23: 0 | AB23: 0 | AC23: 0 | AD23: 0 | AF23: -25.226 | AG23: -31.571 | AH23: -28.119 | AI23: -44.447 | AJ23: -37.618 | AK23: -38.927 | AL23: -38.827 | AM23: Loyal supporter | AP23: Loyal supporter
A24: 21 | C24: 1 | D24: 0 | R24: 0 | S24: 0 | T24: 0 | U24: 0 | V24: 0 | W24: 0 | X24: 0 | Y24: 0 | Z24: 0 | AA24: 0 | AB24: 0 | AC24: 0 | AD24: 0 | AF24: -25.226 | AG24: -31.571 | AH24: -28.119 | AI24: -44.447 | AJ24: -37.618 | AK24: -38.927 | AL24: -38.827 | AM24: Loyal supporter | AP24: Loyal supporter
A25: 22 | C25: 0 | D25: 1 | R25: 0 | S25: 0 | T25: 0 | U25: 0 | V25: 0 | W25: 0 | X25: 0 | Y25: 0 | Z25: 0 | AA25: 0 | AB25: 0 | AC25: 0 | AD25: 0 | AF25: -25.226 | AG25: -31.571 | AH25: -28.119 | AI25: -44.447 | AJ25: -37.618 | AK25: -38.927 | AL25: -38.827 | AM25: Loyal supporter | AP25: Loyal supporter
A26: 23 | C26: 1 | D26: 1 | R26: 0 | S26: 0 | T26: 0 | U26: 0 | V26: 0 | W26: 0 | X26: 0 | Y26: 0 | Z26: 0 | AA26: 0 | AB26: 0 | AC26: 0 | AD26: 0 | AF26: -25.226 | AG26: -31.571 | AH26: -28.119 | AI26: -44.447 | AJ26: -37.618 | AK26: -38.927 | AL26: -38.827 | AM26: Loyal supporter | AP26: Loyal supporter
A27: 24 | C27: 0 | D27: 0 | R27: 0 | S27: 0 | T27: 0 | U27: 0 | V27: 0 | W27: 0 | X27: 0 | Y27: 0 | Z27: 0 | AA27: 0 | AB27: 0 | AC27: 0 | AD27: 0 | AF27: -25.226 | AG27: -31.571 | AH27: -28.119 | AI27: -44.447 | AJ27: -37.618 | AK27: -38.927 | AL27: -38.827 | AM27: Loyal supporter | AP27: Loyal supporter
A28: 25 | C28: 1 | D28: 1 | R28: 0 | S28: 0 | T28: 0 | U28: 0 | V28: 0 | W28: 0 | X28: 0 | Y28: 0 | Z28: 0 | AA28: 0 | AB28: 0 | AC28: 0 | AD28: 0 | AF28: -25.226 | AG28: -31.571 | AH28: -28.119 | AI28: -44.447 | AJ28: -37.618 | AK28: -38.927 | AL28: -38.827 | AM28: Loyal supporter | AP28: Loyal supporter
A29: 26 | C29: 1 | D29: 1 | R29: 0 | S29: 0 | T29: 0 | U29: 0 | V29: 0 | W29: 0 | X29: 0 | Y29: 0 | Z29: 0 | AA29: 0 | AB29: 0 | AC29: 0 | AD29: 0 | AF29: -25.226 | AG29: -31.571 | AH29: -28.119 | AI29: -44.447 | AJ29: -37.618 | AK29: -38.927 | AL29: -38.827 | AM29: Loyal supporter | AP29: Loyal supporter
A30: 27 | C30: 1 | D30: 1 | R30: 0 | S30: 0 | T30: 0 | U30: 0 | V30: 0 | W30: 0 | X30: 0 | Y30: 0 | Z30: 0 | AA30: 0 | AB30: 0 | AC30: 0 | AD30: 0 | AF30: -25.226 | AG30: -31.571 | AH30: -28.119 | AI30: -44.447 | AJ30: -37.618 | AK30: -38.927 | AL30: -38.827 | AM30: Loyal supporter | AP30: Loyal supporter
A31: 28 | C31: 0 | D31: 0 | R31: 0 | S31: 0 | T31: 0 | U31: 0 | V31: 0 | W31: 0 | X31: 0 | Y31: 0 | Z31: 0 | AA31: 0 | AB31: 0 | AC31: 0 | AD31: 0 | AF31: -25.226 | AG31: -31.571 | AH31: -28.119 | AI31: -44.447 | AJ31: -37.618 | AK31: -38.927 | AL31: -38.827 | AM31: Loyal supporter | AP31: Loyal supporter
A32: 29 | C32: 0 | D32: 1 | R32: 0 | S32: 0 | T32: 0 | U32: 0 | V32: 0 | W32: 0 | X32: 0 | Y32: 0 | Z32: 0 | AA32: 0 | AB32: 0 | AC32: 0 | AD32: 0 | AF32: -25.226 | AG32: -31.571 | AH32: -28.119 | AI32: -44.447 | AJ32: -37.618 | AK32: -38.927 | AL32: -38.827 | AM32: Loyal supporter | AP32: Loyal supporter
A33: 30 | C33: 0 | D33: 0 | R33: 0 | S33: 0 | T33: 0 | U33: 0 | V33: 0 | W33: 0 | X33: 0 | Y33: 0 | Z33: 0 | AA33: 0 | AB33: 0 | AC33: 0 | AD33: 0 | AF33: -25.226 | AG33: -31.571 | AH33: -28.119 | AI33: -44.447 | AJ33: -37.618 | AK33: -38.927 | AL33: -38.827 | AM33: Loyal supporter | AP33: Loyal supporter
A34: 31 | C34: 1 | D34: 0 | R34: 0 | S34: 0 | T34: 0 | U34: 0 | V34: 0 | W34: 0 | X34: 0 | Y34: 0 | Z34: 0 | AA34: 0 | AB34: 0 | AC34: 0 | AD34: 0 | AF34: -25.226 | AG34: -31.571 | AH34: -28.119 | AI34: -44.447 | AJ34: -37.618 | AK34: -38.927 | AL34: -38.827 | AM34: Loyal supporter | AP34: Loyal supporter
A35: 32 | C35: 1 | D35: 0 | R35: 0 | S35: 0 | T35: 0 | U35: 0 | V35: 0 | W35: 0 | X35: 0 | Y35: 0 | Z35: 0 | AA35: 0 | AB35: 0 | AC35: 0 | AD35: 0 | AF35: -25.226 | AG35: -31.571 | AH35: -28.119 | AI35: -44.447 | AJ35: -37.618 | AK35: -38.927 | AL35: -38.827 | AM35: Loyal supporter | AP35: Loyal supporter
A36: 33 | C36: 0 | D36: 0 | R36: =E36 -> 0 | S36: =F36 -> 0 | T36: =G36 -> 0 | U36: =H36 -> 0 | V36: =I36 -> 0 | W36: =J36 -> 0 | X36: =K36 -> 0 | Y36: =L36 -> 0 | Z36: =M36 -> 0 | AA36: =N36 -> 0 | AB36: =O36 -> 0 | AC36: =P36 -> 0 | AD36: =Q36 -> 0 | AF36: =SUMPRODUCT($AX$6:$BJ$6,R36:AD36)+ $BK$6 -> -25.226 | AG36: =SUMPRODUCT($AX$7:$BJ$7,R36:AD36)+ $BK$7 -> -31.571 | AH36: =SUMPRODUCT($AX$8:$BJ$8,R36:AD36)+ $BK$8 -> -28.119 | AI36: =SUMPRODUCT($AX$9:$BJ$9,R36:AD36)+ $BK$9 -> -44.447 | AJ36: =SUMPRODUCT($AX$10:$BJ$10,R36:AD36)+ $BK$10 -> -37.618 | AK36: =SUMPRODUCT($AX$11:$BJ$11,R36:AD36)+ $BK$11 -> -38.927 | AL36: =SUMPRODUCT($AX$12:$BJ$12,R36:AD36)+ $BK$12 -> -38.827 | AM36: Loyal supporter | AP36: Loyal supporter
A37: 34 | C37: 0 | D37: 1 | R37: 0 | S37: 0 | T37: 0 | U37: 0 | V37: 0 | W37: 0 | X37: 0 | Y37: 0 | Z37: 0 | AA37: 0 | AB37: 0 | AC37: 0 | AD37: 0 | AF37: -25.226 | AG37: -31.571 | AH37: -28.119 | AI37: -44.447 | AJ37: -37.618 | AK37: -38.927 | AL37: -38.827 | AM37: Loyal supporter | AP37: Loyal supporter
A38: 35 | C38: 0 | D38: 1 | R38: 0 | S38: 0 | T38: 0 | U38: 0 | V38: 0 | W38: 0 | X38: 0 | Y38: 0 | Z38: 0 | AA38: 0 | AB38: 0 | AC38: 0 | AD38: 0 | AF38: -25.226 | AG38: -31.571 | AH38: -28.119 | AI38: -44.447 | AJ38: -37.618 | AK38: -38.927 | AL38: -38.827 | AM38: Loyal supporter | AP38: Loyal supporter
A39: 36 | C39: 1 | D39: 1 | R39: 0 | S39: 0 | T39: 0 | U39: 0 | V39: 0 | W39: 0 | X39: 0 | Y39: 0 | Z39: 0 | AA39: 0 | AB39: 0 | AC39: 0 | AD39: 0 | AF39: -25.226 | AG39: -31.571 | AH39: -28.119 | AI39: -44.447 | AJ39: -37.618 | AK39: -38.927 | AL39: -38.827 | AM39: Loyal supporter | AP39: Loyal supporter
A40: 37 | C40: 1 | D40: 1 | R40: 0 | S40: 0 | T40: 0 | U40: 0 | V40: 0 | W40: 0 | X40: 0 | Y40: 0 | Z40: 0 | AA40: 0 | AB40: 0 | AC40: 0 | AD40: 0 | AF40: -25.226 | AG40: -31.571 | AH40: -28.119 | AI40: -44.447 | AJ40: -37.618 | AK40: -38.927 | AL40: -38.827 | AM40: Loyal supporter | AP40: Loyal supporter
A41: 38 | C41: 1 | D41: 1 | R41: 0 | S41: 0 | T41: 0 | U41: 0 | V41: 0 | W41: 0 | X41: 0 | Y41: 0 | Z41: 0 | AA41: 0 | AB41: 0 | AC41: 0 | AD41: 0 | AF41: -25.226 | AG41: -31.571 | AH41: -28.119 | AI41: -44.447 | AJ41: -37.618 | AK41: -38.927 | AL41: -38.827 | AM41: Loyal supporter | AP41: Loyal supporter
A42: 39 | C42: 0 | D42: 0 | R42: 0 | S42: 0 | T42: 0 | U42: 0 | V42: 0 | W42: 0 | X42: 0 | Y42: 0 | Z42: 0 | AA42: 0 | AB42: 0 | AC42: 0 | AD42: 0 | AF42: -25.226 | AG42: -31.571 | AH42: -28.119 | AI42: -44.447 | AJ42: -37.618 | AK42: -38.927 | AL42: -38.827 | AM42: Loyal supporter | AP42: Loyal supporter
A43: 40 | C43: 1 | D43: 0 | R43: 0 | S43: 0 | T43: 0 | U43: 0 | V43: 0 | W43: 0 | X43: 0 | Y43: 0 | Z43: 0 | AA43: 0 | AB43: 0 | AC43: 0 | AD43: 0 | AF43: -25.226 | AG43: -31.571 | AH43: -28.119 | AI43: -44.447 | AJ43: -37.618 | AK43: -38.927 | AL43: -38.827 | AM43: Loyal supporter | AP43: Loyal supporter
A44: 41 | C44: 1 | D44: 1 | R44: 0 | S44: 0 | T44: 0 | U44: 0 | V44: 0 | W44: 0 | X44: 0 | Y44: 0 | Z44: 0 | AA44: 0 | AB44: 0 | AC44: 0 | AD44: 0 | AF44: -25.226 | AG44: -31.571 | AH44: -28.119 | AI44: -44.447 | AJ44: -37.618 | AK44: -38.927 | AL44: -38.827 | AM44: Loyal supporter | AP44: Loyal supporter
A45: 42 | C45: 1 | D45: 0 | R45: 0 | S45: 0 | T45: 0 | U45: 0 | V45: 0 | W45: 0 | X45: 0 | Y45: 0 | Z45: 0 | AA45: 0 | AB45: 0 | AC45: 0 | AD45: 0 | AF45: -25.226 | AG45: -31.571 | AH45: -28.119 | AI45: -44.447 | AJ45: -37.618 | AK45: -38.927 | AL45: -38.827 | AM45: Loyal supporter | AP45: Loyal supporter
A46: 43 | C46: 0 | D46: 1 | R46: 0 | S46: 0 | T46: 0 | U46: 0 | V46: 0 | W46: 0 | X46: 0 | Y46: 0 | Z46: 0 | AA46: 0 | AB46: 0 | AC46: 0 | AD46: 0 | AF46: -25.226 | AG46: -31.571 | AH46: -28.119 | AI46: -44.447 | AJ46: -37.618 | AK46: -38.927 | AL46: -38.827 | AM46: Loyal supporter | AP46: Loyal supporter
A47: 44 | C47: 0 | D47: 0 | R47: 0 | S47: 0 | T47: 0 | U47: 0 | V47: 0 | W47: 0 | X47: 0 | Y47: 0 | Z47: 0 | AA47: 0 | AB47: 0 | AC47: 0 | AD47: 0 | AF47: -25.226 | AG47: -31.571 | AH47: -28.119 | AI47: -44.447 | AJ47: -37.618 | AK47: -38.927 | AL47: -38.827 | AM47: Loyal supporter | AP47: Loyal supporter
A48: 45 | C48: 1 | D48: 1 | R48: 0 | S48: 0 | T48: 0 | U48: 0 | V48: 0 | W48: 0 | X48: 0 | Y48: 0 | Z48: 0 | AA48: 0 | AB48: 0 | AC48: 0 | AD48: 0 | AF48: -25.226 | AG48: -31.571 | AH48: -28.119 | AI48: -44.447 | AJ48: -37.618 | AK48: -38.927 | AL48: -38.827 | AM48: Loyal supporter | AP48: Loyal supporter
A49: 46 | C49: 1 | D49: 1 | R49: 0 | S49: 0 | T49: 0 | U49: 0 | V49: 0 | W49: 0 | X49: 0 | Y49: 0 | Z49: 0 | AA49: 0 | AB49: 0 | AC49: 0 | AD49: 0 | AF49: -25.226 | AG49: -31.571 | AH49: -28.119 | AI49: -44.447 | AJ49: -37.618 | AK49: -38.927 | AL49: -38.827 | AM49: Loyal supporter | AP49: Loyal supporter
A50: 47 | C50: 1 | D50: 1 | R50: 0 | S50: 0 | T50: 0 | U50: 0 | V50: 0 | W50: 0 | X50: 0 | Y50: 0 | Z50: 0 | AA50: 0 | AB50: 0 | AC50: 0 | AD50: 0 | AF50: -25.226 | AG50: -31.571 | AH50: -28.119 | AI50: -44.447 | AJ50: -37.618 | AK50: -38.927 | AL50: -38.827 | AM50: Loyal supporter | AP50: Loyal supporter
A51: 48 | C51: 1 | D51: 0 | R51: 0 | S51: 0 | T51: 0 | U51: 0 | V51: 0 | W51: 0 | X51: 0 | Y51: 0 | Z51: 0 | AA51: 0 | AB51: 0 | AC51: 0 | AD51: 0 | AF51: -25.226 | AG51: -31.571 | AH51: -28.119 | AI51: -44.447 | AJ51: -37.618 | AK51: -38.927 | AL51: -38.827 | AM51: Loyal supporter | AP51: Loyal supporter
A52: 49 | C52: 0 | D52: 0 | R52: 0 | S52: 0 | T52: 0 | U52: 0 | V52: 0 | W52: 0 | X52: 0 | Y52: 0 | Z52: 0 | AA52: 0 | AB52: 0 | AC52: 0 | AD52: 0 | AF52: -25.226 | AG52: -31.571 | AH52: -28.119 | AI52: -44.447 | AJ52: -37.618 | AK52: -38.927 | AL52: -38.827 | AM52: Loyal supporter | AP52: Loyal supporter
A53: 50 | C53: 0 | D53: 0 | R53: 0 | S53: 0 | T53: 0 | U53: 0 | V53: 0 | W53: 0 | X53: 0 | Y53: 0 | Z53: 0 | AA53: 0 | AB53: 0 | AC53: 0 | AD53: 0 | AF53: -25.226 | AG53: -31.571 | AH53: -28.119 | AI53: -44.447 | AJ53: -37.618 | AK53: -38.927 | AL53: -38.827 | AM53: Loyal supporter | AP53: Loyal supporter
A54: 51 | C54: 1 | D54: 1 | R54: 0 | S54: 0 | T54: 0 | U54: 0 | V54: 0 | W54: 0 | X54: 0 | Y54: 0 | Z54: 0 | AA54: 0 | AB54: 0 | AC54: 0 | AD54: 0 | AF54: -25.226 | AG54: -31.571 | AH54: -28.119 | AI54: -44.447 | AJ54: -37.618 | AK54: -38.927 | AL54: -38.827 | AM54: Loyal supporter | AP54: Loyal supporter
A55: 52 | C55: 0 | D55: 0 | R55: 0 | S55: 0 | T55: 0 | U55: 0 | V55: 0 | W55: 0 | X55: 0 | Y55: 0 | Z55: 0 | AA55: 0 | AB55: 0 | AC55: 0 | AD55: 0 | AF55: -25.226 | AG55: -31.571 | AH55: -28.119 | AI55: -44.447 | AJ55: -37.618 | AK55: -38.927 | AL55: -38.827 | AM55: Loyal supporter | AP55: Loyal supporter
A56: 53 | C56: 1 | D56: 1 | R56: 0 | S56: 0 | T56: 0 | U56: 0 | V56: 0 | W56: 0 | X56: 0 | Y56: 0 | Z56: 0 | AA56: 0 | AB56: 0 | AC56: 0 | AD56: 0 | AF56: -25.226 | AG56: -31.571 | AH56: -28.119 | AI56: -44.447 | AJ56: -37.618 | AK56: -38.927 | AL56: -38.827 | AM56: Loyal supporter | AP56: Loyal supporter
A57: 54 | C57: 1 | D57: 0 | R57: 0 | S57: 0 | T57: 0 | U57: 0 | V57: 0 | W57: 0 | X57: 0 | Y57: 0 | Z57: 0 | AA57: 0 | AB57: 0 | AC57: 0 | AD57: 0 | AF57: -25.226 | AG57: -31.571 | AH57: -28.119 | AI57: -44.447 | AJ57: -37.618 | AK57: -38.927 | AL57: -38.827 | AM57: Loyal supporter | AP57: Loyal supporter
A58: 55 | C58: 1 | D58: 0 | R58: 0 | S58: 0 | T58: 0 | U58: 0 | V58: 0 | W58: 0 | X58: 0 | Y58: 0 | Z58: 0 | AA58: 0 | AB58: 0 | AC58: 0 | AD58: 0 | AF58: -25.226 | AG58: -31.571 | AH58: -28.119 | AI58: -44.447 | AJ58: -37.618 | AK58: -38.927 | AL58: -38.827 | AM58: Loyal supporter | AP58: Loyal supporter
A59: 56 | C59: 1 | D59: 1 | R59: 0 | S59: 0 | T59: 0 | U59: 0 | V59: 0 | W59: 0 | X59: 0 | Y59: 0 | Z59: 0 | AA59: 0 | AB59: 0 | AC59: 0 | AD59: 0 | AF59: -25.226 | AG59: -31.571 | AH59: -28.119 | AI59: -44.447 | AJ59: -37.618 | AK59: -38.927 | AL59: -38.827 | AM59: Loyal supporter | AP59: Loyal supporter
A60: 57 | C60: 1 | D60: 1 | R60: 0 | S60: 0 | T60: 0 | U60: 0 | V60: 0 | W60: 0 | X60: 0 | Y60: 0 | Z60: 0 | AA60: 0 | AB60: 0 | AC60: 0 | AD60: 0 | AF60: -25.226 | AG60: -31.571 | AH60: -28.119 | AI60: -44.447 | AJ60: -37.618 | AK60: -38.927 | AL60: -38.827 | AM60: Loyal supporter | AP60: Loyal supporter
A61: 58 | C61: 1 | D61: 0 | R61: 0 | S61: 0 | T61: 0 | U61: 0 | V61: 0 | W61: 0 | X61: 0 | Y61: 0 | Z61: 0 | AA61: 0 | AB61: 0 | AC61: 0 | AD61: 0 | AF61: -25.226 | AG61: -31.571 | AH61: -28.119 | AI61: -44.447 | AJ61: -37.618 | AK61: -38.927 | AL61: -38.827 | AM61: Loyal supporter | AP61: Loyal supporter
A62: 59 | C62: 0 | D62: 0 | R62: 0 | S62: 0 | T62: 0 | U62: 0 | V62: 0 | W62: 0 | X62: 0 | Y62: 0 | Z62: 0 | AA62: 0 | AB62: 0 | AC62: 0 | AD62: 0 | AF62: -25.226 | AG62: -31.571 | AH62: -28.119 | AI62: -44.447 | AJ62: -37.618 | AK62: -38.927 | AL62: -38.827 | AM62: Loyal supporter | AP62: Loyal supporter
A63: 60 | C63: 1 | D63: 1 | R63: 0 | S63: 0 | T63: 0 | U63: 0 | V63: 0 | W63: 0 | X63: 0 | Y63: 0 | Z63: 0 | AA63: 0 | AB63: 0 | AC63: 0 | AD63: 0 | AF63: -25.226 | AG63: -31.571 | AH63: -28.119 | AI63: -44.447 | AJ63: -37.618 | AK63: -38.927 | AL63: -38.827 | AM63: Loyal supporter | AP63: Loyal supporter
A64: 61 | C64: 0 | D64: 1 | R64: 0 | S64: 0 | T64: 0 | U64: 0 | V64: 0 | W64: 0 | X64: 0 | Y64: 0 | Z64: 0 | AA64: 0 | AB64: 0 | AC64: 0 | AD64: 0 | AF64: -25.226 | AG64: -31.571 | AH64: -28.119 | AI64: -44.447 | AJ64: -37.618 | AK64: -38.927 | AL64: -38.827 | AM64: Loyal supporter | AP64: Loyal supporter
A65: 62 | C65: 1 | D65: 1 | R65: 0 | S65: 0 | T65: 0 | U65: 0 | V65: 0 | W65: 0 | X65: 0 | Y65: 0 | Z65: 0 | AA65: 0 | AB65: 0 | AC65: 0 | AD65: 0 | AF65: -25.226 | AG65: -31.571 | AH65: -28.119 | AI65: -44.447 | AJ65: -37.618 | AK65: -38.927 | AL65: -38.827 | AM65: Loyal supporter | AP65: Loyal supporter
A66: 63 | C66: 0 | D66: 0 | R66: 0 | S66: 0 | T66: 0 | U66: 0 | V66: 0 | W66: 0 | X66: 0 | Y66: 0 | Z66: 0 | AA66: 0 | AB66: 0 | AC66: 0 | AD66: 0 | AF66: -25.226 | AG66: -31.571 | AH66: -28.119 | AI66: -44.447 | AJ66: -37.618 | AK66: -38.927 | AL66: -38.827 | AM66: Loyal supporter | AP66: Loyal supporter
A67: 64 | C67: 1 | D67: 0 | R67: 0 | S67: 0 | T67: 0 | U67: 0 | V67: 0 | W67: 0 | X67: 0 | Y67: 0 | Z67: 0 | AA67: 0 | AB67: 0 | AC67: 0 | AD67: 0 | AF67: -25.226 | AG67: -31.571 | AH67: -28.119 | AI67: -44.447 | AJ67: -37.618 | AK67: -38.927 | AL67: -38.827 | AM67: Loyal supporter | AP67: Loyal supporter
A68: 65 | C68: 0 | D68: 0 | R68: =E68 -> 0 | S68: =F68 -> 0 | T68: =G68 -> 0 | U68: =H68 -> 0 | V68: =I68 -> 0 | W68: =J68 -> 0 | X68: =K68 -> 0 | Y68: =L68 -> 0 | Z68: =M68 -> 0 | AA68: =N68 -> 0 | AB68: =O68 -> 0 | AC68: =P68 -> 0 | AD68: =Q68 -> 0 | AF68: =SUMPRODUCT($AX$6:$BJ$6,R68:AD68)+ $BK$6 -> -25.226 | AG68: =SUMPRODUCT($AX$7:$BJ$7,R68:AD68)+ $BK$7 -> -31.571 | AH68: =SUMPRODUCT($AX$8:$BJ$8,R68:AD68)+ $BK$8 -> -28.119 | AI68: =SUMPRODUCT($AX$9:$BJ$9,R68:AD68)+ $BK$9 -> -44.447 | AJ68: =SUMPRODUCT($AX$10:$BJ$10,R68:AD68)+ $BK$10 -> -37.618 | AK68: =SUMPRODUCT($AX$11:$BJ$11,R68:AD68)+ $BK$11 -> -38.927 | AL68: =SUMPRODUCT($AX$12:$BJ$12,R68:AD68)+ $BK$12 -> -38.827 | AM68: Loyal supporter | AP68: Loyal supporter
A69: 66 | C69: 0 | D69: 0 | R69: 0 | S69: 0 | T69: 0 | U69: 0 | V69: 0 | W69: 0 | X69: 0 | Y69: 0 | Z69: 0 | AA69: 0 | AB69: 0 | AC69: 0 | AD69: 0 | AF69: -25.226 | AG69: -31.571 | AH69: -28.119 | AI69: -44.447 | AJ69: -37.618 | AK69: -38.927 | AL69: -38.827 | AM69: =IF(MAX(AF69:AL69)=AF69,"Loyal supporter",IF(MAX(AF69:AL69)=AG69,"Ad-hoc giver",IF(MAX(AF69:AL69)=AH69,"Good citizen",IF(MAX(AF69:AL69)=AI69,"Faith-based donor",IF(MAX(AF69:AL69)=AJ69,"Engaged champion",IF(MAX(AF69:AL69)=AK69,"Benefactor",IF(MAX(AF69:AL69)=AL69,"Thoughtful philanthropist",""))))))) -> Loyal supporter | AP69: =AM69 -> Loyal supporter
A70: =A69+1 -> 67 | C70: 0 | D70: 1 | R70: 0 | S70: 0 | T70: 0 | U70: 0 | V70: 0 | W70: 0 | X70: 0 | Y70: 0 | Z70: 0 | AA70: 0 | AB70: 0 | AC70: 0 | AD70: 0 | AF70: -25.226 | AG70: -31.571 | AH70: -28.119 | AI70: -44.447 | AJ70: -37.618 | AK70: -38.927 | AL70: -38.827 | AM70: Loyal supporter | AP70: Loyal supporter
A71: 68 | C71: 1 | D71: 0 | R71: 0 | S71: 0 | T71: 0 | U71: 0 | V71: 0 | W71: 0 | X71: 0 | Y71: 0 | Z71: 0 | AA71: 0 | AB71: 0 | AC71: 0 | AD71: 0 | AF71: -25.226 | AG71: -31.571 | AH71: -28.119 | AI71: -44.447 | AJ71: -37.618 | AK71: -38.927 | AL71: -38.827 | AM71: Loyal supporter | AP71: Loyal supporter
A72: 69 | C72: 1 | D72: 0 | R72: 0 | S72: 0 | T72: 0 | U72: 0 | V72: 0 | W72: 0 | X72: 0 | Y72: 0 | Z72: 0 | AA72: 0 | AB72: 0 | AC72: 0 | AD72: 0 | AF72: -25.226 | AG72: -31.571 | AH72: -28.119 | AI72: -44.447 | AJ72: -37.618 | AK72: -38.927 | AL72: -38.827 | AM72: Loyal supporter | AP72: Loyal supporter
A73: 70 | C73: 1 | D73: 1 | R73: 0 | S73: 0 | T73: 0 | U73: 0 | V73: 0 | W73: 0 | X73: 0 | Y73: 0 | Z73: 0 | AA73: 0 | AB73: 0 | AC73: 0 | AD73: 0 | AF73: -25.226 | AG73: -31.571 | AH73: -28.119 | AI73: -44.447 | AJ73: -37.618 | AK73: -38.927 | AL73: -38.827 | AM73: Loyal supporter | AP73: Loyal supporter
A74: 71 | C74: 0 | D74: 0 | R74: 0 | S74: 0 | T74: 0 | U74: 0 | V74: 0 | W74: 0 | X74: 0 | Y74: 0 | Z74: 0 | AA74: 0 | AB74: 0 | AC74: 0 | AD74: 0 | AF74: -25.226 | AG74: -31.571 | AH74: -28.119 | AI74: -44.447 | AJ74: -37.618 | AK74: -38.927 | AL74: -38.827 | AM74: Loyal supporter | AP74: Loyal supporter
A75: 72 | C75: 1 | D75: 1 | R75: 0 | S75: 0 | T75: 0 | U75: 0 | V75: 0 | W75: 0 | X75: 0 | Y75: 0 | Z75: 0 | AA75: 0 | AB75: 0 | AC75: 0 | AD75: 0 | AF75: -25.226 | AG75: -31.571 | AH75: -28.119 | AI75: -44.447 | AJ75: -37.618 | AK75: -38.927 | AL75: -38.827 | AM75: Loyal supporter | AP75: Loyal supporter
A76: 73 | C76: 1 | D76: 0 | R76: 0 | S76: 0 | T76: 0 | U76: 0 | V76: 0 | W76: 0 | X76: 0 | Y76: 0 | Z76: 0 | AA76: 0 | AB76: 0 | AC76: 0 | AD76: 0 | AF76: -25.226 | AG76: -31.571 | AH76: -28.119 | AI76: -44.447 | AJ76: -37.618 | AK76: -38.927 | AL76: -38.827 | AM76: Loyal supporter | AP76: Loyal supporter
A77: 74 | C77: 1 | D77: 1 | R77: 0 | S77: 0 | T77: 0 | U77: 0 | V77: 0 | W77: 0 | X77: 0 | Y77: 0 | Z77: 0 | AA77: 0 | AB77: 0 | AC77: 0 | AD77: 0 | AF77: -25.226 | AG77: -31.571 | AH77: -28.119 | AI77: -44.447 | AJ77: -37.618 | AK77: -38.927 | AL77: -38.827 | AM77: Loyal supporter | AP77: Loyal supporter
A78: 75 | C78: 0 | D78: 0 | R78: 0 | S78: 0 | T78: 0 | U78: 0 | V78: 0 | W78: 0 | X78: 0 | Y78: 0 | Z78: 0 | AA78: 0 | AB78: 0 | AC78: 0 | AD78: 0 | AF78: -25.226 | AG78: -31.571 | AH78: -28.119 | AI78: -44.447 | AJ78: -37.618 | AK78: -38.927 | AL78: -38.827 | AM78: Loyal supporter | AP78: Loyal supporter
A79: 76 | C79: 0 | D79: 0 | R79: 0 | S79: 0 | T79: 0 | U79: 0 | V79: 0 | W79: 0 | X79: 0 | Y79: 0 | Z79: 0 | AA79: 0 | AB79: 0 | AC79: 0 | AD79: 0 | AF79: -25.226 | AG79: -31.571 | AH79: -28.119 | AI79: -44.447 | AJ79: -37.618 | AK79: -38.927 | AL79: -38.827 | AM79: Loyal supporter | AP79: Loyal supporter
A80: 77 | C80: 1 | D80: 1 | R80: 0 | S80: 0 | T80: 0 | U80: 0 | V80: 0 | W80: 0 | X80: 0 | Y80: 0 | Z80: 0 | AA80: 0 | AB80: 0 | AC80: 0 | AD80: 0 | AF80: -25.226 | AG80: -31.571 | AH80: -28.119 | AI80: -44.447 | AJ80: -37.618 | AK80: -38.927 | AL80: -38.827 | AM80: Loyal supporter | AP80: Loyal supporter
A81: 78 | C81: 0 | D81: 0 | R81: 0 | S81: 0 | T81: 0 | U81: 0 | V81: 0 | W81: 0 | X81: 0 | Y81: 0 | Z81: 0 | AA81: 0 | AB81: 0 | AC81: 0 | AD81: 0 | AF81: -25.226 | AG81: -31.571 | AH81: -28.119 | AI81: -44.447 | AJ81: -37.618 | AK81: -38.927 | AL81: -38.827 | AM81: Loyal supporter | AP81: Loyal supporter
A82: 79 | C82: 1 | D82: 1 | R82: 0 | S82: 0 | T82: 0 | U82: 0 | V82: 0 | W82: 0 | X82: 0 | Y82: 0 | Z82: 0 | AA82: 0 | AB82: 0 | AC82: 0 | AD82: 0 | AF82: -25.226 | AG82: -31.571 | AH82: -28.119 | AI82: -44.447 | AJ82: -37.618 | AK82: -38.927 | AL82: -38.827 | AM82: Loyal supporter | AP82: Loyal supporter
A83: 80 | C83: 0 | D83: 0 | R83: 0 | S83: 0 | T83: 0 | U83: 0 | V83: 0 | W83: 0 | X83: 0 | Y83: 0 | Z83: 0 | AA83: 0 | AB83: 0 | AC83: 0 | AD83: 0 | AF83: -25.226 | AG83: -31.571 | AH83: -28.119 | AI83: -44.447 | AJ83: -37.618 | AK83: -38.927 | AL83: -38.827 | AM83: Loyal supporter | AP83: Loyal supporter
A84: 81 | C84: 1 | D84: 1 | R84: 0 | S84: 0 | T84: 0 | U84: 0 | V84: 0 | W84: 0 | X84: 0 | Y84: 0 | Z84: 0 | AA84: 0 | AB84: 0 | AC84: 0 | AD84: 0 | AF84: -25.226 | AG84: -31.571 | AH84: -28.119 | AI84: -44.447 | AJ84: -37.618 | AK84: -38.927 | AL84: -38.827 | AM84: Loyal supporter | AP84: Loyal supporter
A85: 82 | C85: 0 | D85: 0 | R85: 0 | S85: 0 | T85: 0 | U85: 0 | V85: 0 | W85: 0 | X85: 0 | Y85: 0 | Z85: 0 | AA85: 0 | AB85: 0 | AC85: 0 | AD85: 0 | AF85: -25.226 | AG85: -31.571 | AH85: -28.119 | AI85: -44.447 | AJ85: -37.618 | AK85: -38.927 | AL85: -38.827 | AM85: Loyal supporter | AP85: Loyal supporter
A86: 83 | C86: 1 | D86: 1 | R86: 0 | S86: 0 | T86: 0 | U86: 0 | V86: 0 | W86: 0 | X86: 0 | Y86: 0 | Z86: 0 | AA86: 0 | AB86: 0 | AC86: 0 | AD86: 0 | AF86: -25.226 | AG86: -31.571 | AH86: -28.119 | AI86: -44.447 | AJ86: -37.618 | AK86: -38.927 | AL86: -38.827 | AM86: Loyal supporter | AP86: Loyal supporter
A87: 84 | C87: 1 | D87: 1 | R87: 0 | S87: 0 | T87: 0 | U87: 0 | V87: 0 | W87: 0 | X87: 0 | Y87: 0 | Z87: 0 | AA87: 0 | AB87: 0 | AC87: 0 | AD87: 0 | AF87: -25.226 | AG87: -31.571 | AH87: -28.119 | AI87: -44.447 | AJ87: -37.618 | AK87: -38.927 | AL87: -38.827 | AM87: Loyal supporter | AP87: Loyal supporter
A88: 85 | C88: 1 | D88: 0 | R88: 0 | S88: 0 | T88: 0 | U88: 0 | V88: 0 | W88: 0 | X88: 0 | Y88: 0 | Z88: 0 | AA88: 0 | AB88: 0 | AC88: 0 | AD88: 0 | AF88: -25.226 | AG88: -31.571 | AH88: -28.119 | AI88: -44.447 | AJ88: -37.618 | AK88: -38.927 | AL88: -38.827 | AM88: Loyal supporter | AP88: Loyal supporter
A89: 86 | C89: 0 | D89: 1 | R89: 0 | S89: 0 | T89: 0 | U89: 0 | V89: 0 | W89: 0 | X89: 0 | Y89: 0 | Z89: 0 | AA89: 0 | AB89: 0 | AC89: 0 | AD89: 0 | AF89: -25.226 | AG89: -31.571 | AH89: -28.119 | AI89: -44.447 | AJ89: -37.618 | AK89: -38.927 | AL89: -38.827 | AM89: Loyal supporter | AP89: Loyal supporter
A90: 87 | C90: 1 | D90: 0 | R90: 0 | S90: 0 | T90: 0 | U90: 0 | V90: 0 | W90: 0 | X90: 0 | Y90: 0 | Z90: 0 | AA90: 0 | AB90: 0 | AC90: 0 | AD90: 0 | AF90: -25.226 | AG90: -31.571 | AH90: -28.119 | AI90: -44.447 | AJ90: -37.618 | AK90: -38.927 | AL90: -38.827 | AM90: Loyal supporter | AP90: Loyal supporter
A91: 88 | C91: 0 | D91: 0 | R91: 0 | S91: 0 | T91: 0 | U91: 0 | V91: 0 | W91: 0 | X91: 0 | Y91: 0 | Z91: 0 | AA91: 0 | AB91: 0 | AC91: 0 | AD91: 0 | AF91: -25.226 | AG91: -31.571 | AH91: -28.119 | AI91: -44.447 | AJ91: -37.618 | AK91: -38.927 | AL91: -38.827 | AM91: Loyal supporter | AP91: Loyal supporter
A92: 89 | C92: 1 | D92: 0 | R92: 0 | S92: 0 | T92: 0 | U92: 0 | V92: 0 | W92: 0 | X92: 0 | Y92: 0 | Z92: 0 | AA92: 0 | AB92: 0 | AC92: 0 | AD92: 0 | AF92: -25.226 | AG92: -31.571 | AH92: -28.119 | AI92: -44.447 | AJ92: -37.618 | AK92: -38.927 | AL92: -38.827 | AM92: Loyal supporter | AP92: Loyal supporter
A93: 90 | C93: 1 | D93: 0 | R93: 0 | S93: 0 | T93: 0 | U93: 0 | V93: 0 | W93: 0 | X93: 0 | Y93: 0 | Z93: 0 | AA93: 0 | AB93: 0 | AC93: 0 | AD93: 0 | AF93: -25.226 | AG93: -31.571 | AH93: -28.119 | AI93: -44.447 | AJ93: -37.618 | AK93: -38.927 | AL93: -38.827 | AM93: Loyal supporter | AP93: Loyal supporter
A94: 91 | C94: 0 | D94: 1 | R94: 0 | S94: 0 | T94: 0 | U94: 0 | V94: 0 | W94: 0 | X94: 0 | Y94: 0 | Z94: 0 | AA94: 0 | AB94: 0 | AC94: 0 | AD94: 0 | AF94: -25.226 | AG94: -31.571 | AH94: -28.119 | AI94: -44.447 | AJ94: -37.618 | AK94: -38.927 | AL94: -38.827 | AM94: Loyal supporter | AP94: Loyal supporter
A95: 92 | C95: 1 | D95: 1 | R95: 0 | S95: 0 | T95: 0 | U95: 0 | V95: 0 | W95: 0 | X95: 0 | Y95: 0 | Z95: 0 | AA95: 0 | AB95: 0 | AC95: 0 | AD95: 0 | AF95: -25.226 | AG95: -31.571 | AH95: -28.119 | AI95: -44.447 | AJ95: -37.618 | AK95: -38.927 | AL95: -38.827 | AM95: Loyal supporter | AP95: Loyal supporter
A96: 93 | C96: 0 | D96: 0 | R96: 0 | S96: 0 | T96: 0 | U96: 0 | V96: 0 | W96: 0 | X96: 0 | Y96: 0 | Z96: 0 | AA96: 0 | AB96: 0 | AC96: 0 | AD96: 0 | AF96: -25.226 | AG96: -31.571 | AH96: -28.119 | AI96: -44.447 | AJ96: -37.618 | AK96: -38.927 | AL96: -38.827 | AM96: Loyal supporter | AP96: Loyal supporter
A97: 94 | C97: 1 | D97: 0 | R97: 0 | S97: 0 | T97: 0 | U97: 0 | V97: 0 | W97: 0 | X97: 0 | Y97: 0 | Z97: 0 | AA97: 0 | AB97: 0 | AC97: 0 | AD97: 0 | AF97: -25.226 | AG97: -31.571 | AH97: -28.119 | AI97: -44.447 | AJ97: -37.618 | AK97: -38.927 | AL97: -38.827 | AM97: Loyal supporter | AP97: Loyal supporter
A98: 95 | C98: 1 | D98: 1 | R98: 0 | S98: 0 | T98: 0 | U98: 0 | V98: 0 | W98: 0 | X98: 0 | Y98: 0 | Z98: 0 | AA98: 0 | AB98: 0 | AC98: 0 | AD98: 0 | AF98: -25.226 | AG98: -31.571 | AH98: -28.119 | AI98: -44.447 | AJ98: -37.618 | AK98: -38.927 | AL98: -38.827 | AM98: Loyal supporter | AP98: Loyal supporter
A99: 96 | C99: 1 | D99: 1 | R99: 0 | S99: 0 | T99: 0 | U99: 0 | V99: 0 | W99: 0 | X99: 0 | Y99: 0 | Z99: 0 | AA99: 0 | AB99: 0 | AC99: 0 | AD99: 0 | AF99: -25.226 | AG99: -31.571 | AH99: -28.119 | AI99: -44.447 | AJ99: -37.618 | AK99: -38.927 | AL99: -38.827 | AM99: Loyal supporter | AP99: Loyal supporter
A100: 97 | C100: 0 | D100: 0 | R100: 0 | S100: 0 | T100: 0 | U100: 0 | V100: 0 | W100: 0 | X100: 0 | Y100: 0 | Z100: 0 | AA100: 0 | AB100: 0 | AC100: 0 | AD100: 0 | AF100: -25.226 | AG100: -31.571 | AH100: -28.119 | AI100: -44.447 | AJ100: -37.618 | AK100: -38.927 | AL100: -38.827 | AM100: Loyal supporter | AP100: Loyal supporter
A101: 98 | C101: 1 | D101: 1 | R101: 0 | S101: 0 | T101: 0 | U101: 0 | V101: 0 | W101: 0 | X101: 0 | Y101: 0 | Z101: 0 | AA101: 0 | AB101: 0 | AC101: 0 | AD101: 0 | AF101: -25.226 | AG101: -31.571 | AH101: -28.119 | AI101: -44.447 | AJ101: -37.618 | AK101: -38.927 | AL101: -38.827 | AM101: Loyal supporter | AP101: Loyal supporter
A102: 99 | C102: 0 | D102: 1 | R102: 0 | S102: 0 | T102: 0 | U102: 0 | V102: 0 | W102: 0 | X102: 0 | Y102: 0 | Z102: 0 | AA102: 0 | AB102: 0 | AC102: 0 | AD102: 0 | AF102: -25.226 | AG102: -31.571 | AH102: -28.119 | AI102: -44.447 | AJ102: -37.618 | AK102: -38.927 | AL102: -38.827 | AM102: Loyal supporter | AP102: Loyal supporter
A103: 100 | R103: =E103 -> 0 | S103: =F103 -> 0 | T103: 0 | U103: 0 | V103: 0 | W103: 0 | X103: 0 | Y103: 0 | Z103: 0 | AA103: 0 | AB103: 0 | AC103: 0 | AD103: 0 | AF103: -25.226 | AG103: -31.571 | AH103: -28.119 | AI103: -44.447 | AJ103: -37.618 | AK103: -38.927 | AL103: -38.827 | AM103: Loyal supporter | AP103: Loyal supporter

Sheet Multiple respondent Notes
A1: MULTIPLE RESPONDENT WORKSHEET NOTES
A3: Coding:
A4: When collecting respondses to the questions, use the following codes
A5: Responses to the paired qs are coded as A=1, B = 0
A6: For questions Q6 and Q7, the values range from 1 - 5 with 5="I pay extremely close attention"
A7: For questions Q8 to Q10, the values range from 1-5 with 5="Very Important"
A8: Responses to Q11 and Q12 are coded as 0=No and 1=Yes
A9: For question 13, the values range from 1 - 5, with 5="Strongly agree"
A11: Data inputting and segment allocation:
A12: Follow the following steps when inputting data into the 'Multiple Respondents' worksheet
A13: For each record, copy and paste the answers to questions (the qs are in row 2) into columns E,F,G,H,I,J,K,L,M,N,O,P and Q
A14: Currently, the formulae to calculate a segment for each respodent applies to only 100 rows of data, if additional rows of data are to be inputted, then the formulae should be copied by "dragging" the mouse from columns R103-AM103 downwards
A15: Where cells contain the formula for allocating respondents to segments but no data is inputted, the default response is 'Loyal Supporter'. This is because with no data, the calculation picks up the highest constant, which is the Loyal Supporter constant.
A16: The 'Population summary' (in columns AQ, AR, AS) indicates what proportion of the population is in each of the segments. To remove the default 'Loyal supporter' entries from this calculation, delete all unused cells containing the formula for allocating to segments.
A17: Further calculation details can be found in hidden columns R-AN.
A20: Discriminant function coefficients
A21: The formula for allocating donors to segments uses the following discriminant function coefficients.
A22: These coefficients indivate the relative weighting of different factors in allocating individuals to the different segments.
A24: Qs | B24: Loyal supporter | C24: Ad-hoc giver | D24: Good citizen | E24: Faith-based donor | F24: Engaged champion | G24: Benefactor | H24: Thoughtful philanthropist
A25: Pair 1 | B25: 9.299 | C25: 10.616 | D25: 1.785 | E25: 9.613 | F25: 10.349 | G25: 7.944 | H25: 10.18
A26: Pair 2 | B26: 0.173 | C26: 4.551 | D26: 2.798 | E26: 0.957 | F26: -0.119 | G26: 2.775 | H26: 1.082
A27: Pair 3 | B27: 0.064 | C27: 1.36 | D27: 1.237 | E27: 1.623 | F27: 1.528 | G27: 0.665 | H27: 0.772
A28: Pair 4 | B28: -0.92 | C28: -0.838 | D28: -0.098 | E28: 28.988 | F28: -1.397 | G28: 3.849 | H28: 0.453
A29: Pair 5 | B29: 0.807 | C29: 0.94 | D29: 1.183 | E29: 0.116 | F29: 0.227 | G29: 14.658 | H29: 0.526
A30: Q6 | B30: 1.701 | C30: 1.514 | D30: 1.613 | E30: 2.036 | F30: 2.531 | G30: 1.961 | H30: 2.007
A31: Q7 | B31: 2.243 | C31: 2.14 | D31: 2.201 | E31: 2.061 | F31: 2.706 | G31: 2.365 | H31: 2.391
A32: Q8 | B32: 2.712 | C32: 2.936 | D32: 2.823 | E32: 3.088 | F32: 3.152 | G32: 2.692 | H32: 2.899
A33: Q9 | B33: 1.445 | C33: 1.562 | D33: 1.798 | E33: 1.702 | F33: 2.086 | G33: 1.876 | H33: 1.672
A34: Q10 | B34: 1.669 | C34: 1.976 | D34: 2.013 | E34: 1.766 | F34: 2.13 | G34: 2.118 | H34: 1.833
A35: Q11 | B35: 1.871 | C35: 0.617 | D35: 0.855 | E35: 1.278 | F35: 0.609 | G35: 0.77 | H35: 0.981
A36: Q12 | B36: 0.439 | C36: 0.198 | D36: 1.57 | E36: -0.2 | F36: -0.054 | G36: 0.906 | H36: 18.94
A37: Q13 | B37: 2.959 | C37: 3.554 | D37: 3.749 | E37: 3.012 | F37: 3.681 | G37: 3.605 | H37: 3.637
A38: Constant | B38: -25.226 | C38: -31.571 | D38: -28.119 | E38: -44.447 | F38: -37.618 | G38: -38.927 | H38: -38.827
A41: Confidence levels
A42: Percentage of respondents from original survey correctly classified using the Know your Donor tool, and the single segment tools.
B44: % Correctly classified using 'Know your Donors' allocation tool | C44: % Correctly classified using 'Single segments' allocation tool
A45: Loyal supporter | B45: 64.2 | C45: 61.9
A46: Ad-hoc giver | B46: 66.9 | C46: 71.7
A47: Good citizen | B47: 64 | C47: 81.8
A48: Faith-based donor | B48: 95 | C48: 92.5
A49: Engaged champion | B49: 68.8 | C49: 54.7
A50: Benefactor | B50: 67.1 | C50: 91
A51: Thoughtful philanthropist | B51: 61.2 | C51: 99.5
A52: Overall | B52: 68.2
